Cogmind - Beta 13 X1 @@@ ROGUE MODE // 2023.12.12 @ 11:27:44 Player: VR-DUX Result: Destroyed by as-81500 with Assembled Blade Performance ------------- Evolutions (0) 0 Regions Visited (2) 400 Robots Destroyed (30) 150 Value Destroyed (678) 678 Prototype IDs (0) 0 Alien Tech Used (0) 0 Bonus (0) 0 TOTAL SCORE: 1228 Bonus ------- None Cogmind --------- Core Integrity 0/250 Matter 236/300 Energy 100/100 System Corruption 9% Temperature Cool (0) Movement Treading (240) Ox1 Location -10/Mines Parts ------- > --- POWER (1) -------- (None) > --- PROPULSION (2) --- Light Treads > --- UTILITY (2) ------ Large Storage Unit > --- WEAPON (2) ------- Light Cannon > --- INVENTORY (15) --- Ion Engine Light Treads Compact Wheel Improved Heat Sink Signal Interpreter Hacking Suite Assault Rifle Assault Rifle Improved Light Cannon Improved Light Cannon Improved Light Cannon Improved Light Cannon Mining Laser Peak State ------------ > --- POWER ------------ Ion Engine > --- PROPULSION ------- Aluminum Leg Aluminum Leg > --- UTILITY ---------- Large Storage Unit Improved Terrain Scanner > --- WEAPON ----------- Light Cannon Improved Light Cannon > --- INVENTORY -------- Ion Engine Light Treads Light Treads Compact Wheel Improved Heat Sink Signal Interpreter ECM Suite Hacking Suite Assault Rifle Light Cannon Improved Light Cannon Improved Light Cannon Improved Light Cannon [Rating: 12] Favorites ----------- Power Ion Engine Engine Ion Engine Propulsion Aluminum Leg Treads Light Treads Leg Aluminum Leg Utility Improved Terrain Scanner Device Improved Terrain Scanner Storage Large Storage Unit Weapon Improved Light Cannon Ballistic Gun Assault Rifle Ballistic Cannon Improved Light Cannon Launcher Grenade Launcher Build | -11 -10 -10 ------- Run | Jun Mat Min Slots Evolved . | . . . Power . | . . . Propulsion . | . . . Utility . | . . . Weapon . | . . . Parts Attached 17 | 1 10 6 Power 2 | . 2 . Engine 2 | . 2 . Core . | . . . Reactor . | . . . Propulsion 4 | . 2 2 Treads 1 | . . 1 Leg 3 | . 2 1 Wheel . | . . . Hover . | . . . Flight . | . . . Utility 2 | 1 1 . Device 1 | 1 . . Storage 1 | . 1 . Processor . | . . . Hackware . | . . . Protection . | . . . Artifact . | . . . Weapon 9 | . 5 4 Energy Gun . | . . . Energy Cannon . | . . . Ballistic Gun . | . . . Ballistic Cannon 6 | . 3 3 Launcher 3 | . 2 1 Special Weapon . | . . . Impact Weapon . | . . . Slashing Weapon . | . . . Piercing Weapon . | . . . Special Melee Weapon . | . . . Unidentified Prototypes . | . . . Parts Lost 7 | . 1 6 Power 1 | . . 1 Propulsion 2 | . . 2 Utility 1 | . . 1 Weapon 3 | . 1 2 Highest Loss Streak 6 | . 1 6 To Critical Strikes . | . . . Average Slot Usage (%) 99 | . 99 94 Engine 13 | . 14 12 Leg 27 | . 28 24 Device 13 | . 14 13 Storage 14 | . 14 14 Ballistic Gun 6 | . 7 . Ballistic Cannon 18 | . 17 24 Launcher 2 | . 2 3 Naked Turns . | . . . Heaviest Build 33 | 13 33 33 Greatest Support 20 | 20 20 20 Greatest Overweight (x) 1 | . 1 1 Average Overweight (x) . | . . 1 Largest Inventory Capacity 15 | 8 15 15 Average Capacity 14 | 8 14 15 Most Carried 15 | 6 15 15 Average Carried 12 | 5 12 14 Final Capacity 15 | 8 15 15 Final Carried 15 | 5 15 13 Class Distribution -------------------- 100% | Mutant Dominant Class ---------------- Mutant | -10/Materials Mutant | -10/Mines Resources | -11 -10 -10 ----------- Run | Jun Mat Min Matter Collected 865 | 234 505 126 Remotely . | . . . Salvage Created 1125 | 126 792 207 Parts 57 | 5 40 12 Haulers Intercepted 2 | . 2 . Recyclers Shooed 3 | . 3 . Parts Field Recycled . | . . . Retrieved Matter . | . . . Parts Self-Destructed . | . . . Prevented . | . . . Kills | -11 -10 -10 ------- Run | Jun Mat Min Combat Hostiles Destroyed 14 | . 9 5 Guns 7 | . 7 . Cannons 7 | . 2 5 Classes Destroyed 10 | 2 7 1 Worker 1 | . 1 . Builder 3 | . 3 . Tunneler 1 | 1 . . Hauler 2 | . 2 . Recycler 5 | 1 3 1 Mechanic 1 | . 1 . Operator 1 | . 1 . Watcher 2 | . 2 . Grunt 13 | . 9 4 Demolisher 1 | . . 1 Best Kill Streak 4 | 2 4 3 Combat Bots Only 3 | . 3 2 Max Kills in Single Turn 1 | 1 1 1 Gunslinging . | . . . Exploded . | . . . Melee . | . . . Uniques/NPCs Destroyed . | . . . Combat | -11 -10 -10 -------- Run | Jun Mat Min Damage Taken 1392 | . 398 994 Core 284 | . 21 263 Absorbed by Shields . | . . . Core Remaining (%) 100 | 100 . . Volleys Fired 82 | 4 59 19 Largest 2 | 2 2 2 Hottest 74 | 40 74 70 Shots Fired 152 | 8 110 34 Gun 74 | 8 66 . Cannon 68 | . 38 30 Launcher 10 | . 6 4 Special . | . . . Kinetic 142 | 8 104 30 Thermal . | . . . Explosive 10 | . 6 4 Electromagnetic . | . . . Robot Hit Streak 13 | 4 13 6 Robot Miss Streak 3 | 1 3 1 Penetration Max . | . . . Secondary Targets . | . . . Shots Hit Robots 99 | 6 71 22 Core Hits 46 | 3 33 10 Critical Kills . | . . . Critical Parts Destroyed . | . . . Critical Strikes 2 | . 1 1 Blast 2 | . 1 1 Melee Attacks . | . . . Impact . | . . . Slashing . | . . . Piercing . | . . . Sneak Attacks . | . . . Combat Hostiles . | . . . Follow-up Attacks . | . . . Damage Inflicted 1581 | 74 1082 425 Guns 664 | 74 590 . Cannons 859 | . 492 367 Explosions 58 | . . 58 Melee . | . . . Ramming . | . . . Kinetic 1523 | 74 1082 367 Thermal . | . . . Explosive 58 | . . 58 Electromagnetic . | . . . Impact . | . . . Slashing . | . . . Piercing . | . . . Highest Corruption 9 | . . 9 Average Corruption 9 | . . 9 Corruption Purged . | . . . Corruption Blocked . | . . . Overload Shots . | . . . Overflow Damage 17 | . 11 6 Projectiles 11 | . 11 . Explosions 6 | . . 6 Melee . | . . . Knockbacks 10 | . 4 6 Impact . | . . . Kinetic 9 | . 4 5 Secondary 1 | . . 1 Self-Inflicted Damage 139 | . 3 136 Shots 5 | . 1 4 Rammed . | . . . Targets Rammed . | . . . Kicked . | . . . Crushed . | . . . Highest Temperature 54 | . 24 54 Average Temperature 15 | . 7 25 Received Heat Transfer 300 | . 231 69 Siege Activations . | . . . Robots Corrupted . | . . . Combat Hostiles . | . . . Parts Fried . | . . . Impact Corruptions . | . . . Robots Melted . | . . . Combat Hostiles . | . . . Parts Melted . | . . . Heat Transferred . | . . . Parts Sabotaged . | . . . Parts Stolen . | . . . Parts Stripped . | . . . Power Chain Reactions . | . . . Missiles Intercepted . | . . . Alert | -11 -10 -10 ------- Run | Jun Mat Min Peak Influence 316 | 10 316 142 Initial 11 | . 6 11 Average 81 | 6 82 84 Maximum Alert Level 1 | . 1 . Low Security (%) 85 | 100 83 100 Level 1 14 | . 16 . Level 2 . | . . . Level 3 . | . . . Level 4 . | . . . Level 5 . | . . . High Security . | . . . Max Security . | . . . Squads Dispatched . | . . . Investigation . | . . . Extermination . | . . . Reinforcement . | . . . Assault . | . . . Garrison . | . . . Intercept . | . . . Searches Triggered . | . . . Construction Impeded . | . . . Haulers Reinforced . | . . . Active Scanning Responses . | . . . Cargo Convoy Interrupts . | . . . Stealth | -11 -10 -10 --------- Run | Jun Mat Min Distress Signals 1 | . 1 . Communications Jammed . | . . . Distress Signals . | . . . Times Spotted 34 | . 25 9 Peak Tracking Total 6 | . 6 3 Tactical Retreats 5 | . 4 1 Traps | -11 -10 -10 ------- Run | Jun Mat Min Traps Triggered . | . . . Indirectly . | . . . Trap Hack Attempts . | . . . Triggered . | . . . Disarmed . | . . . Reprogrammed . | . . . Reused . | . . . Traps Extracted . | . . . Installed . | . . . Triggered . | . . . Machines | -11 -10 -10 ---------- Run | Jun Mat Min Machines Disabled . | . . . Max in Single Turn . | . . . Machines Repaired . | . . . Machines Sabotaged . | . . . Overloaded Fab Kills . | . . . Hacking | -11 -10 -10 --------- Run | Jun Mat Min Machines Accessed 9 | . 9 . Terminals 7 | . 7 . Fabricators . | . . . Repair Stations . | . . . Recycling Units 2 | . 2 . Scanalyzers . | . . . Garrison Access . | . . . Total Hacks 22 | . 22 . Successful 11 | . 11 . Failed 10 | . 10 . Catastrophic . | . . . Database Lockouts 1 | . 1 . Manual 10 | . 10 . Terminals 18 | . 18 . Fabricators . | . . . Repair Stations . | . . . Recycling Units 4 | . 4 . Scanalyzers . | . . . Garrison Access . | . . . Terminal Hacks 11 | . 11 . Robot Analysis 3 | . 3 . Branch Access Points 1 | . 1 . Alert Level 1 | . 1 . Unreport Threat 1 | . 1 . Locate Traps 2 | . 2 . Hauler Manifests 1 | . 1 . Registered Prototypes 1 | . 1 . Zone Layout 1 | . 1 . Fabricator Hacks . | . . . Repair Station Hacks . | . . . Recycling Unit Hacks . | . . . Scanalyzer . | . . . Garrison Access Hacks . | . . . Unauthorized Hacks . | . . . Terminals . | . . . Fabricators . | . . . Repair Stations . | . . . Recycling Units . | . . . Scanalyzers . | . . . Garrison Access . | . . . Data Cores Recovered 1 | . 1 . Used . | . . . Hacking Detections 6 | . 6 . Full Trace Events . | . . . Feedback Events . | . . . Feedback Blocked . | . . . Robot Schematics Acquired . | . . . Robots Built . | . . . Authchips . | . . . Time . | . . . Total Robot Build Rating . | . . . Part Schematics Acquired . | . . . Parts Built . | . . . Authchips . | . . . Time . | . . . Total Part Build Rating . | . . . Parts Repaired . | . . . Time . | . . . Parts Recycled . | . . . Recycled Matter . | . . . Retrieved Matter . | . . . Retrieved Components . | . . . Parts Scanalyzed . | . . . Part Schematics Acquired . | . . . Parts Damaged . | . . . Bothacking | -11 -10 -10 ------------ Run | Jun Mat Min Used RIF Installer . | . . . Robots Hacked . | . . . Non-combat . | . . . Combat . | . . . Robot Hacks Applied . | . . . Relay Couplers Released . | . . . Fabnet Peak Effective % . | . . . Robots Rewired . | . . . Allies Hacked . | . . . Hacks Repelled . | . . . Allies | -11 -10 -10 -------- Run | Jun Mat Min Total Allies . | . . . Largest Group . | . . . Highest-Rated Group . | . . . Highest-Rated Ally . | . . . Total Orders . | . . . Ally Attacks . | . . . Total Damage . | . . . Kills . | . . . Allies Corrupted . | . . . Allies Melted . | . . . Intel | -11 -10 -10 ------- Run | Jun Mat Min Robot Analysis Total 3 | . 3 . Derelict Logs Recovered . | . . . Drone Launches . | . . . Drone Recoveries . | . . . Exploration | -11 -10 -10 ------------- Run | Jun Mat Min Turns Passed 2209 | 34 1930 245 Spaces Moved 971 | 17 873 81 Core . | . . . Treads 7 | . . 7 Legs 964 | 17 873 74 Wheels . | . . . Hover . | . . . Flight . | . . . Fastest Speed 120 | 120 120 190 Average Speed 188 | 120 189 194 Slowest Speed 240 | 120 190 240 Overloaded Moves . | . . . Propulsion Burnouts . | . . . Robots Hopped . | . . . Cave-ins Triggered 1 | . . 1 Exploration Rate (%) 40 | 2 100 19 Regions Visited 2 Branch Regions 1 Pre-discovered Areas . | . . . Known Exits Taken 1 | . 1 . Unknown Exits Taken 1 | 1 . . Scrap Searched 1 | . . 1 Spaces Dug 8 | . 8 . Terrain Destroyed 57 | . 43 14 Melee . | . . . Projectile 1 | . 1 . AOE 56 | . 42 14 Terrain Rammed . | . . . Walls Destroyed . | . . . Machines Disabled . | . . . Actions | -11 -10 -10 --------- Run | Jun Mat Min Total 1195 | 22 1039 134 Wait 102 | . 75 27 Move 969 | 16 872 81 Hop . | . . . Pick Up 15 | . 15 . Fast Attach 2 | 1 1 . Attach 4 | . 2 2 Detach . | . . . Swap 11 | . 7 4 Drop 10 | 1 8 1 Fire 82 | 4 59 19 Melee . | . . . Ram . | . . . Kick . | . . . Crush . | . . . Escape Stasis . | . . . Rewire . | . . . Trap . | . . . Miscellaneous . | . . . Route ------- -11/Junkyard -10/Materials (discovered 4 exits: [*Mat x3] / *Min) -10/Mines (discovered 1 exit: [*Mat]) History --------- Turn | Location | Event 10 | -11/Junkyard | Discovered new exit (range 3) 35 | -11/Junkyard | Entered Materials 316 | -10/Materials | Build established: Mutant 576 | -10/Materials | Discovered new exit (range 6) 587 | -10/Materials | Central database locked down 976 | -10/Materials | Discovered new exit (range 6) 1062 | -10/Materials | Identified exit to Mines 1412 | -10/Materials | Discovered new exit (range 15) 1691 | -10/Materials | Discovered new exit (range 15) 1965 | -10/Materials | Entered Mines 1979 | -10/Mines | Discovered new exit (range 15) 2154 | -10/Mines | Assembled infested the area 2183 | -10/Mines | Core integrity fell below 50% 2189 | -10/Mines | Core integrity fell below 20% 2203 | -10/Mines | Crushed by falling debris 2210 | -10/Mines | Destroyed by as-81500 with Assembled Blade Last Messages --------------- 02184_ The unstable cave ceiling collapses. 02186_ Grenade Launcher destroyed. 02188_ Core Extractor disabled. 02189_ The unstable cave ceiling collapses. 02190_ D-53 Grenadier knocked back. 02193_ The unstable cave ceiling collapses. 02193_ D-53 Grenadier destroyed. 02199_ U-05 Engineer builds a Wall. 02203_ The unstable cave ceiling collapses. 02203_ Crushed by falling debris. 02203_ Lgt. Cannon destroyed. 02203_ System corrupted by crushing effect (+4). 02203_ Imp. Terrain Scanner destroyed. 02203_ System corrupted by crushing effect (+5). 02203_ The unstable cave ceiling collapses. 02203_ U-05 Engineer builds a Wall. 02204_ The unstable cave ceiling collapses. 02208_ U-05 Engineer lays Concrete. 02209_ U-05 Engineer builds a Wall. 02210_ K-01 Serf collects debris. Map ----- +----------------------------------------------------+ | ????????????????????????????############ #?????? | | ????????????????????????? ?? #???????# #?????? | | ?????????????????????????? ? #???????# #???### | | ????????????????????????????# #?????###[#?????? | | ????????????????????????????# #?????##[ ##????? | | ?????????????????????????#??# #????##%%=*#????# | | ????????????????????????????# #?##?# < #????? | | ??????????????????????????#?# ##???# % ##???? | | ????????????????????????????# #???## % ##??##? | | ????????????????????##??????# #????## #????#? | | ???????????????????## #???### #?????### #?#???# | | ????????????????#### #?## #####???# ##????? | | ???????????????? ## #####??#*#?????? | | ???????????????? #?????#[#?#???? | | ??????????????????### """ ###?#?#!#?????? | | ???????????????###### """ ##????#%#?#???? | | ??????????????? % " " ##??##%#?????? | | ?????????????????##### u ##??#=##????? | | ?????????????#???????### k## ####=#???#?? | | ??????????????????????# # # ## !#?????? | | ??????????????????#???# # ##########?#???? | | ???????????#??????????# #????????????? | | ??????????????????????# # ##?????#??????? | | ???????????????? ??#??# # #????????##?#?? | | ??????????????????###### a ##??#????#?????? | | ??????????????????# @ #??????????????? | | ??????????????????# ####### ## #??????????????? | | ??????????????????????????#######??????????????? | | ????????????????????????????#?#?????????#?#????? | | ???????????????????????????????????????????#???? | | ???????????????????????????##??????#???????????? | | ?????????????????????????#?????????????#???????? | | ???????????????????????????????????????????????? | | ????????????????????????????#??????????????????? | | ???????????????????????????????????????????????? | | ?????????????????????????#?????????????????????? | | ???????????????????????????????????????????????? | | ???????????????????????????????????????????????? | | ???????????????????????????????????????????????? | | ???????????????????????????????????????????????? | | ???????????????????????????????????????????????? | | ???????????????????????????????????????????????? | | ???????????????????????????????????????????????? | | ???????????????????????????????????????????????? | | | | | | | | | | | | | +----------------------------------------------------+ Best States ------------- Heat Dissipation 25 Energy Generation 10 Energy Capacity 250 Matter Stores 300 Matter Capacity 300 Sight Range 16 Terrain Scan Range 16 Terrain Scan Density 10 Evasion (%) 50 Recoil Reduction 1 Item Schematics ----------------- None Robot Schematics ------------------ None Fabricated ------------ Nothing Alien Tech Used ----------------- None Achievements -------------- None Challenges ------------ None Game ------ Seed BackupBattleKatana Manual? 0 Play Time 00:20:23 Cumulative 202.1 hours Start 2023.12.12 @ 11:09:45 End 2023.12.12 @ 11:27:44 Sessions 1 Manual Loads 0 Difficulty Rogue Special Mode None Game No. 121 Rogue 121 Adventurer 0 Explorer 0 Win Type - Total 4 Types 3/0/1/0/0/0/0/0/0 Lore% 55 Gallery% 55 Achievement% 53 Wizard Run 0 Options --------- ASCII 0 Keyboard 0 Movement Mouse Keybinds 0 Fullscreen 1 Font 18/SmallcapsGlow Map View 76x50 Tactical HUD 1 Map Filters NONE Filters NONE Steam 1 RUN: 47ba99c6-1142-46b4-93fd-0a24a2450da3